bitfinex-derivatives/quotes_ETHF0:USTF0_20250504
["timestamp","ask_amount","ask_price","bid_price","bid_amount"]
[1746317489820,4.4129025,1838.5,1838.4,1.87883]
[1746317490020,4.4129025,1838.5,1838.4,3.49273]
[1746317490222,6.0498025,1838.5,1838.4,7.18073]
[1746317490616,5.6904,1838.5,1838.4,7.18073]
[1746317490816,6.04979004,1838.5,1838.4,7.18073]
[1746317496225,6.0496979,1838.5,1838.4,4.77563]
[1746317496928,7.1372679,1838.5,1838.4,3.688]
[1746317497123,7.1372679,1838.5,1838.4,4.77563]
[1746317497821,6.77797,1838.5,1838.4,4.77563]
[1746317498125,7.13730669,1838.5,1838.4,4.77563]
[1746317499720,7.13736178,1838.5,1838.4,4.77563]
[1746317500429,6.04979178,1838.5,1838.4,4.77563]
[1746317501427,2.84199178,1838.5,1838.4,4.77563]
[1746317501629,2.84208503,1838.5,1838.4,4.77563]
[1746317502527,2.84208503,1838.5,1838.4,6.42463]
[1746317503230,2.84208503,1838.5,1838.4,13.75019772]
[1746317504231,2.84219319,1838.5,1838.4,13.75019772]
[1746317505329,2.84227172,1838.5,1838.4,12.10119772]
[1746317505530,7.13764172,1838.5,1838.4,3.688]
[1746317505731,6.05007172,1838.5,1838.4,4.77563]
[1746317506935,6.05030955,1838.5,1838.4,4.77563]
[1746317509237,6.05047438,1838.5,1838.4,4.77563]
[1746317509430,7.13804438,1838.5,1838.4,4.77563]
[1746317509736,6.05055724,1838.5,1838.4,4.77563]
[1746317510742,6.0507102,1838.5,1838.4,4.77563]
[1746317512040,6.0507102,1838.5,1838.4,12.10119772]
[1746317512533,6.0507102,1838.5,1838.4,13.83169772]
[1746317514142,6.0507102,1838.5,1838.4,14.62899772]
[1746317514343,6.05080168,1838.5,1838.4,14.62899772]
[1746317516144,5.6904,1838.5,1838.4,14.62899772]
[1746317516337,6.05082438,1838.5,1838.4,14.62899772]
[1746317516639,3.56822438,1838.5,1838.4,14.62899772]
[1746317517041,0.36042438,1838.5,1838.4,14.62899772]
[1746317518057,1.9036,1838.6,1838.5,1.08757]
[1746317518249,2.26400024,1838.6,1838.5,10.85273772]
[1746317518449,0.36040024,1838.6,1838.5,10.85273772]
[1746317519152,0.36040024,1838.6,1838.5,14.54073772]
[1746317519849,1.9035,1838.7,1838.6,1.08751]
[1746317520052,6.55905528,1838.7,1838.6,3.473]
[1746317520253,8.97385528,1838.7,1838.6,3.473]
[1746317520953,1.08751,1838.6,1838.5,3.688]
[1746317521261,1.08779,1838.2,1838.0,10.7949814]
[1746317521557,0.36014015,1838.1,1838.0,10.7949814]
[1746317522058,0.36014015,1838.1,1838.0,18.12054912]
[1746317522258,0.36014015,1838.1,1838.0,21.80854912]
[1746317522860,0.36014015,1838.1,1838.0,14.54100772]
[1746317523155,0.36014015,1838.1,1838.0,12.10140772]
[1746317523357,8.96404015,1838.1,1838.0,3.688]
[1746317524055,3.96404015,1838.1,1838.0,3.688]
[1746317524762,3.96323354,1838.1,1838.0,3.688]
[1746317527356,8.27793268,1838.1,1838.0,3.688]
[1746317528162,8.27757374,1838.1,1838.0,3.688]
[1746317530064,8.27744376,1838.1,1838.0,3.688]
[1746317531064,8.27735619,1838.1,1838.0,3.688]
[1746317531964,3.96265705,1838.1,1838.0,3.688]
[1746317533566,5.8666412,1838.1,1838.0,3.688]
[1746317535564,5.0228412,1838.1,1838.0,11.01356772]
[1746317535760,1.9041,1838.1,1838.0,17.10142772]
[1746317536470,1.9041,1838.1,1838.0,18.83862772]
[1746317540169,1.9041,1838.1,1838.0,13.83862772]
[1746317541671,1.9041,1838.1,1838.0,18.83862772]
[1746317543571,1.9041,1838.1,1838.0,22.04642772]
[1746317544169,1.9041,1838.1,1838.0,17.04642772]
[1746317544369,1.9041,1838.1,1838.0,22.04642772]
[1746317544771,4.29533,1838.6,1838.1,2.71944]
[1746317544973,4.29533,1838.6,1838.5,8.41313772]
[1746317545273,4.65436684,1838.6,1838.5,15.57413772]
[1746317545476,4.29533,1838.6,1838.5,15.57413772]
[1746317545674,4.29533,1838.6,1838.5,14.48656772]
[1746317546176,4.29533,1838.6,1838.5,16.87186772]
[1746317546468,3.2078,1838.6,1838.5,17.95943772]
[1746317547775,6.44478439,1838.7,1838.6,1.08751]
[1746317547971,5.07954762,1838.7,1838.6,10.01477772]
[1746317548273,3.11342058,1838.8,1838.6,17.13506772]
[1746317548474,10.84102605,1839.0,1838.7,9.76916772]
[1746317548774,10.84102605,1839.0,1838.9,7.31346772]
[1746317548775,3.61794701,1839.0,1838.9,7.31346772]
[1746317549172,3.61794701,1839.0,1838.9,12.63926772]
[1746317549776,3.61794701,1839.0,1838.9,13.72659772]
[1746317549970,3.61794701,1839.0,1838.9,12.63926772]
[1746317550165,7.91301701,1839.0,1838.9,12.63926772]
[1746317550369,10.40331701,1839.0,1838.9,12.63926772]
[1746317550569,10.40331701,1839.0,1838.9,3.688]
[1746317550769,11.19171701,1839.0,1838.9,3.688]
[1746317550980,11.55070599,1839.0,1838.9,3.688]
[1746317551677,11.55060956,1839.0,1838.9,3.688]
[1746317551866,11.19171701,1839.0,1838.9,3.688]
[1746317553171,7.57377,1839.0,1838.9,3.688]
[1746317554078,7.93255398,1839.0,1838.9,3.688]
[1746317554379,12.93255398,1839.0,1838.9,3.688]
[1746317555081,7.93255398,1839.0,1838.9,3.688]
[1746317555274,7.93253875,1839.0,1838.9,3.688]
[1746317555982,7.93258022,1839.0,1838.9,3.688]
[1746317557179,7.93264349,1839.0,1838.9,3.688]
[1746317558983,7.9327691,1839.0,1838.9,3.688]
[1746317560186,1.08751,1838.6,1838.5,4.3026]
[1746317560687,1.08751,1838.6,1838.5,11.61606772]
[1746317560879,2.78831,1838.6,1838.5,11.61606772]
[1746317561081,2.78831,1838.6,1838.5,15.30406772]
[1746317562489,3.14759779,1838.6,1838.5,15.30406772]
[1746317562885,2.78831,1838.6,1838.5,15.30406772]
[1746317563079,1.7008,1838.6,1838.5,20.30406772]
[1746317563280,3.2078,1838.7,1838.5,20.30406772]
[1746317563480,4.29529,1838.7,1838.6,8.88086772]
[1746317563682,4.29529,1838.7,1838.6,9.74266772]
[1746317564481,4.65495252,1838.7,1838.6,9.74266772]
[1746317564680,4.65495252,1838.7,1838.6,8.88086772]
[1746317566188,4.65515634,1838.7,1838.6,8.88086772]
[1746317568090,4.65531625,1838.7,1838.6,8.88086772]
[1746317569592,1.44751625,1838.7,1838.6,8.88086772]
[1746317569786,4.65547478,1838.7,1838.6,8.88086772]
[1746317570188,5.52017478,1838.7,1838.6,8.88086772]
[1746317571597,5.52032094,1838.7,1838.6,8.88086772]
[1746317573688,5.52032094,1838.7,1838.6,7.31346772]
[1746317577193,5.52046935,1838.7,1838.6,7.31346772]
[1746317578205,2.31266935,1838.7,1838.6,7.31346772]
[1746317578803,5.52046935,1838.7,1838.6,7.31346772]
[1746317578991,5.52048164,1838.7,1838.6,9.00186772]
[1746317580706,5.52065534,1838.7,1838.6,9.00186772]
[1746317580908,4.65595534,1838.7,1838.6,9.00186772]
[1746317581203,4.65595534,1838.7,1838.6,9.79636772]
[1746317581401,4.29529,1838.7,1838.6,9.79636772]
[1746317581606,4.65598304,1838.7,1838.6,9.79636772]
[1746317581901,4.29529,1838.7,1838.6,9.79636772]
[1746317582094,4.65600068,1838.7,1838.6,9.79636772]
[1746317582696,5.46730068,1838.7,1838.6,9.79636772]
[1746317583698,5.10659,1838.7,1838.6,9.79636772]
[1746317583905,5.46749165,1838.7,1838.6,9.00186772]
[1746317584897,5.46749165,1838.7,1838.6,7.31346772]
[1746317585095,5.46749165,1838.7,1838.6,9.02736772]
[1746317585295,5.46749165,1838.7,1838.6,1.7139]
[1746317585502,1.08751,1838.6,1838.5,7.9906]
[1746317585701,3.08251165,1838.6,1838.5,7.9906]
[1746317586510,3.08251165,1838.6,1838.5,7.16]
[1746317587209,3.08257085,1838.6,1838.5,7.16]
[1746317587409,3.08256412,1838.6,1838.5,7.16]
[1746317587609,3.08256412,1838.6,1838.5,3.688]
[1746317587813,3.08256412,1838.6,1838.5,4.5107]
[1746317589110,6.29036412,1838.6,1838.5,4.5107]
[1746317591015,6.29039715,1838.6,1838.5,4.5107]
[1746317591413,6.29039715,1838.6,1838.5,11.82416772]
[1746317592320,6.29040421,1838.6,1838.5,11.82416772]
[1746317592808,6.29040171,1838.6,1838.5,11.82416772]
[1746317594613,6.29048553,1838.6,1838.5,11.82416772]
[1746317596514,6.29048553,1838.6,1838.5,12.64796772]
[1746317598619,4.65638553,1838.6,1838.5,12.64796772]
[1746317599022,4.65638553,1838.6,1838.5,14.22616772]
[1746317600116,4.29531,1838.6,1838.5,14.22616772]
[1746317600320,4.65637232,1838.6,1838.5,14.22616772]
[1746317601022,4.65637232,1838.6,1838.5,13.40236772]
[1746317601520,4.65637232,1838.6,1838.5,6.0889]
[1746317601721,6.27317232,1838.6,1838.5,6.0889]
[1746317602123,6.27318541,1838.6,1838.5,6.0889]
[1746317603922,6.27316493,1838.6,1838.5,6.0889]
[1746317605725,6.27317491,1838.6,1838.5,6.0889]
[1746317607320,6.27318954,1838.6,1838.5,6.0889]
[1746317607518,4.65638954,1838.6,1838.5,13.40236772]
[1746317607718,4.6563872,1838.6,1838.5,13.40236772]
[1746317607913,4.6563872,1838.6,1838.5,14.25366772]
[1746317609827,0.3610772,1838.6,1838.5,15.34123772]
[1746317611029,0.3610635,1838.6,1838.5,15.34123772]
[1746317611418,0.36106475,1838.6,1838.5,15.34123772]
[1746317611830,0.36106475,1838.6,1838.5,18.81423772]
[1746317612034,3.56886475,1838.6,1838.5,18.81423772]
[1746317613233,3.56887388,1838.6,1838.5,18.81423772]
[1746317613529,4.65638388,1838.6,1838.5,18.81423772]
[1746317613929,0.36107388,1838.6,1838.5,23.81423772]
[1746317614128,9.75165019,1838.8,1838.6,1.08747]
[1746317614327,9.75165019,1838.8,1838.7,8.88006772]
[1746317614626,10.11253299,1838.8,1838.7,9.74526772]
[1746317614826,10.11253299,1838.8,1838.7,10.83271772]
[1746317615022,9.02513735,1838.8,1838.7,10.83271772]
[1746317615224,9.02513735,1838.8,1838.7,14.52071772]
[1746317615837,10.11252735,1838.8,1838.7,14.52071772]
[1746317616036,10.11252735,1838.8,1838.7,13.43326772]
[1746317616834,10.11232297,1838.8,1838.7,13.43326772]
[1746317617534,9.02493297,1838.8,1838.7,14.52071772]
[1746317618739,9.02481356,1838.8,1838.7,14.52071772]
[1746317619937,8.66425019,1838.8,1838.7,14.52071772]
[1746317620433,7.22307904,1838.9,1838.8,1.08739]
[1746317620632,11.92175856,1839.3,1839.0,1.08727]
[1746317620633,5.45130474,1839.1,1839.0,1.08727]
[1746317620940,5.45130474,1839.1,1839.0,4.56027]
[1746317621238,5.45130474,1839.1,1839.0,20.56173772]
[1746317621440,5.45130474,1839.1,1839.0,21.35083772]
[1746317622035,5.45130474,1839.1,1839.0,16.35083772]
[1746317622745,5.45130474,1839.1,1839.0,17.98413772]
[1746317625746,2.70884,1839.4,1839.3,1.08709]
[1746317626042,2.70884,1839.4,1839.3,11.87255772]
[1746317626545,2.70884,1839.4,1839.3,10.78546772]
[1746317626946,2.70884,1839.4,1839.3,12.50606772]
[1746317627147,2.70884,1839.4,1839.3,17.28115772]
[1746317628248,1.6218,1839.4,1839.3,17.28115772]
[1746317628749,2.4419,1839.4,1839.3,17.28115772]
[1746317630350,2.4419,1839.4,1839.3,9.96769]
[1746317630552,2.4419,1839.4,1839.3,17.28115772]
[1746317635260,2.4419,1839.4,1839.3,15.56055772]
[1746317639758,1.6218,1839.4,1839.3,15.56055772]
[1746317640656,4.0027,1839.5,1839.4,1.08703]
[1746317640854,4.0027,1839.5,1839.4,10.00609772]
[1746317641049,5.7282,1839.5,1839.4,13.69409772]
[1746317642059,3.2078,1839.5,1839.4,14.54389772]
[1746317642952,4.9333,1839.5,1839.4,14.54389772]
[1746317645060,3.2078,1839.5,1839.4,14.54389772]
[1746317651060,3.2078,1839.5,1839.4,15.55949772]
[1746317651362,5.18121566,1839.5,1839.4,15.55949772]
[1746317651862,5.18121856,1839.5,1839.4,15.55949772]
[1746317657267,5.18126477,1839.5,1839.4,15.55949772]
[1746317657872,5.18126477,1839.5,1839.4,17.28439772]
[1746317658777,3.56826477,1839.5,1839.4,17.28439772]
[1746317659168,4.0238,1839.7,1839.4,16.19736772]
[1746317659369,0.36049108,1839.6,1839.5,4.39708]
[1746317659571,0.36049108,1839.6,1839.5,2.76348]
[1746317659871,0.36049108,1839.6,1839.5,10.07694772]
[1746317660173,0.36049108,1839.6,1839.5,13.76494772]
[1746317660469,1.40017,1839.7,1839.6,1.08692]
[1746317660673,7.22307904,1840.3,1840.2,1.08656]
[1746317660869,7.22307904,1840.3,1840.2,3.471]
[1746317661064,10.82877904,1840.3,1840.2,7.159]
[1746317661476,9.74227904,1840.3,1840.2,8.24556]
[1746317661676,10.82877904,1840.3,1840.2,7.159]
[1746317661875,9.74227904,1840.3,1840.2,8.24556]
[1746317662373,10.82877904,1840.3,1840.2,7.159]
[1746317662575,9.74227904,1840.3,1840.2,8.24556]
[1746317662768,9.74227904,1840.3,1840.2,15.55902772]
[1746317662967,9.74227904,1840.3,1840.2,7.159]
[1746317663169,9.74227904,1840.3,1840.2,15.55902772]
[1746317664770,9.74227904,1840.3,1840.2,3.688]
[1746317664771,14.03657904,1840.3,1840.2,3.688]
[1746317667477,14.03657904,1840.3,1839.9,2.76322]
[1746317667478,1.08668,1840.0,1839.9,3.476]
[1746317667776,4.29448,1840.0,1839.9,10.78946772]
[1746317667976,4.29448,1840.0,1839.9,3.476]
[1746317668177,4.29448,1840.0,1839.9,7.164]
[1746317668377,5.95458,1840.0,1839.9,7.164]
[1746317670976,5.95458,1840.0,1839.9,14.47746772]
[1746317672880,5.95458,1840.0,1839.9,16.19346772]
[1746317674588,2.74678,1840.0,1839.9,16.19346772]
[1746317678994,2.74678,1840.0,1839.9,16.98446772]
[1746317689296,1.08668,1840.0,1839.9,18.07120772]
[1746317689696,1.08668,1840.0,1839.9,16.98446772]
[1746317689893,4.0328,1840.1,1839.9,16.98446772]
[1746317690099,5.11942,1840.1,1840.0,8.93526772]
[1746317690299,5.41550901,1840.1,1840.0,1.6218]
[1746317690599,4.59050901,1840.1,1840.0,1.6218]
[1746317691202,4.59050901,1840.1,1840.0,5.3098]
[1746317691405,4.5905721,1840.1,1840.0,5.3098]
[1746317691606,4.29442,1840.1,1840.0,5.3098]
[1746317691801,4.59059141,1840.1,1840.0,5.3098]
[1746317692707,7.14929141,1840.1,1840.0,5.3098]
[1746317694199,3.94149141,1840.1,1840.0,5.3098]
[1746317695200,3.64532,1840.1,1840.0,5.3098]
[1746317695405,3.94171012,1840.1,1840.0,5.3098]
[1746317696105,3.94171012,1840.1,1840.0,6.39648]
[1746317696304,3.94171012,1840.1,1840.0,5.3098]
[1746317696699,3.94171012,1840.1,1840.0,3.688]
[1746317697100,3.94169171,1840.1,1840.0,3.688]
[1746317698904,3.94170699,1840.1,1840.0,3.688]
[1746317700606,3.94175799,1840.1,1840.0,3.688]
[1746317701305,3.94175799,1840.1,1840.0,5.3392]
[1746317701911,3.94176765,1840.1,1840.0,5.3392]
[1746317702910,3.94176765,1840.1,1840.0,3.688]
[1746317704910,1.12884765,1840.1,1840.0,12.08814772]
[1746317705111,0.29644765,1840.1,1840.0,13.79894772]
[1746317705308,1.38306765,1840.1,1840.0,13.79894772]
[1746317705510,1.38309269,1840.1,1840.0,13.79894772]
[1746317706008,0.29647269,1840.1,1840.0,13.79894772]
[1746317706205,0.00744816,1840.3,1840.2,1.08656]
[1746317706406,0.30388959,1840.3,1840.2,11.87002772]
[1746317706609,3.92591379,1840.3,1840.2,14.43652772]
[1746317707109,3.92591379,1840.3,1840.2,18.12452772]
[1746317708107,5.01241379,1840.3,1840.2,18.12452772]
[1746317708313,5.0122723,1840.3,1840.2,18.12452772]
[1746317708513,3.9257723,1840.3,1840.2,18.12452772]
[1746317709315,5.0122723,1840.3,1840.2,18.12452772]
[1746317709911,3.9257723,1840.3,1840.2,18.12452772]
[1746317710112,5.0122723,1840.3,1840.2,18.12452772]
[1746317710319,1.3902481,1840.3,1840.2,18.12452772]
[1746317710915,1.39011533,1840.3,1840.2,18.12452772]
[1746317711224,0.00744816,1840.3,1840.2,18.12452772]
[1746317711514,1.39011449,1840.3,1840.2,18.12452772]
[1746317711916,0.00744816,1840.3,1840.2,21.33232772]
[1746317712219,1.09394816,1840.3,1840.2,17.03796772]
[1746317712620,1.09394816,1840.3,1840.2,18.12452772]
[1746317713118,1.09394816,1840.3,1840.2,17.03796772]
[1746317713713,4.59780488,1840.3,1840.2,3.688]
[1746317713919,11.22600488,1840.3,1840.2,3.688]
[1746317714821,1.08674,1839.9,1839.8,18.15878266]
[1746317715021,4.59059672,1839.9,1839.8,18.15878266]
[1746317715321,4.59059672,1839.9,1839.8,21.84678266]
[1746317715821,5.38339672,1839.9,1839.8,21.84678266]
[1746317716019,7.01039672,1839.9,1839.8,21.84678266]
[1746317716320,7.01033092,1839.9,1839.8,21.84678266]
[1746317717023,7.01033092,1839.9,1839.8,23.41128266]
[1746317719024,3.80253092,1839.9,1839.8,23.41128266]
[1746317719923,3.80253092,1839.9,1839.8,5.2525]
[1746317720922,3.50654,1839.9,1839.8,5.2525]
[1746317721218,5.5441342,1840.0,1839.8,12.56596772]
[1746317721424,5.5441342,1840.0,1839.9,8.93916772]
[1746317722129,5.5441342,1840.0,1839.9,12.62716772]
[1746317722319,4.7087342,1840.0,1839.9,12.62716772]
[1746317722617,4.7087342,1840.0,1839.9,13.43166772]
[1746317723926,1.08671,1840.0,1839.9,13.43166772]
[1746317724229,1.08667,1840.1,1839.9,14.51840772]
[1746317724519,1.91519,1840.2,1840.0,14.32932772]
[1746317724725,9.52362236,1840.3,1840.1,10.03348772]
[1746317724924,9.52362236,1840.3,1840.2,8.94686772]
[1746317725124,9.8193032,1840.3,1840.2,8.94686772]
[1746317725324,9.81930564,1840.3,1840.2,5.3214]
[1746317725525,9.81930564,1840.3,1840.2,3.688]
[1746317727031,6.19728144,1840.3,1840.2,3.688]
[1746317728929,6.19729493,1840.3,1840.2,3.688]
[1746317731433,6.19731013,1840.3,1840.2,3.688]
[1746317732539,6.19730647,1840.3,1840.2,3.688]
[1746317732838,6.19730545,1840.3,1840.2,3.688]
[1746317733833,6.19730545,1840.3,1840.2,5.4149]
[1746317734135,6.61152965,1840.3,1840.2,5.4149]
[1746317734325,6.6115129,1840.3,1840.2,5.4149]
[1746317735432,3.62947236,1840.3,1840.2,12.72836772]
[1746317735635,3.62947236,1840.3,1840.2,13.81492772]
[1746317736433,3.62947236,1840.3,1840.2,18.81492772]
[1746317736932,3.62947236,1840.3,1840.2,22.02272772]
[1746317737136,3.62947236,1840.3,1840.2,17.02272772]
[1746317737431,3.62947236,1840.3,1840.2,22.02272772]
[1746317737827,0.00744816,1840.3,1840.2,22.02272772]
[1746317739234,1.08637,1840.6,1840.4,1.08641]
[1746317739439,1.08637,1840.6,1840.5,6.7925]
[1746317739734,1.08637,1840.6,1840.5,14.10596772]
[1746317740133,1.08637,1840.6,1840.5,17.79396772]
[1746317741737,1.08637,1840.6,1840.5,18.88034772]
[1746317742133,7.9161342,1840.7,1840.5,18.88034772]
[1746317742332,7.9161342,1840.7,1840.6,8.92676772]
[1746317742641,4.29411,1840.7,1840.6,8.92676772]
[1746317742837,1.08631,1840.7,1840.6,8.92676772]
[1746317743230,1.08622,1840.8,1840.6,10.01306772]
[1746317743537,5.09219,1840.9,1840.7,8.92676772]
[1746317743838,5.09219,1840.9,1840.8,8.92676772]
[1746317744030,5.09219,1840.9,1840.8,9.79536772]
[1746317744229,5.09219,1840.9,1840.8,13.48336772]
[1746317744430,4.29399,1840.9,1840.8,13.48336772]
[1746317744632,3.2078,1840.9,1840.8,13.48336772]
[1746317745331,4.29387,1841.1,1840.9,1.08615]
[1746317745532,4.29387,1841.1,1840.9,10.83891772]
[1746317745735,4.29387,1841.1,1840.9,9.75276772]
[1746317745940,6.01887,1841.1,1841.0,1.6142]
[1746317746138,6.01887,1841.1,1841.0,5.3022]
[1746317747241,6.01887,1841.1,1841.0,12.61566772]
[1746317754143,6.01887,1841.1,1841.0,3.688]
[1746317759352,6.01887,1841.1,1841.0,5.3026]
[1746317759548,6.01887,1841.1,1841.0,6.1143]
[1746317760047,6.01887,1841.1,1841.0,13.42776772]
[1746317760251,4.29387,1841.1,1841.0,13.42776772]
[1746317761752,4.29387,1841.1,1841.0,14.51385772]
[1746317761949,3.2078,1841.1,1841.0,14.51385772]
[1746317762153,1.08603,1841.1,1841.0,13.42776772]
[1746317762353,2.78463,1841.1,1841.0,13.42776772]
[1746317763055,1.08602,1841.2,1841.0,14.51385772]
[1746317763350,1.08602,1841.2,1841.1,12.38786772]
[1746317763752,1.08602,1841.2,1841.1,13.47389772]
[1746317763946,2.72162,1841.2,1841.1,13.47389772]
[1746317764152,1.6356,1841.2,1841.1,13.47389772]
[1746317770657,2.72157,1841.2,1841.1,12.38786772]
[1746317771559,2.72157,1841.2,1841.1,10.79846772]
[1746317773857,2.72157,1841.2,1841.1,3.485]
[1746317776252,2.72157,1841.2,1841.1,5.1487]
[1746317776460,1.08597,1841.2,1841.1,6.23473]
[1746317776865,3.2078,1841.3,1841.2,1.08597]
[1746317777056,4.29372,1841.3,1841.2,12.66516772]
[1746317777249,4.29372,1841.3,1841.2,5.3517]
[1746317777449,4.29372,1841.3,1841.2,6.2157]
[1746317782468,1.08592,1841.3,1841.2,6.2157]
[1746317782659,1.08592,1841.3,1841.2,5.3517]
[1746317782960,2.71082,1841.3,1841.2,5.3517]
[1746317783969,1.08592,1841.3,1841.2,6.43767]
[1746317784266,1.08592,1841.3,1841.2,7.23027]
[1746317784862,1.08592,1841.3,1841.2,6.1443]
[1746317785861,1.08592,1841.3,1841.2,7.23027]
[1746317786267,2.4195,1841.4,1841.2,14.54373772]
[1746317786468,1.08591,1841.3,1841.2,11.79406772]
[1746317788270,3.5054,1841.4,1841.2,12.88001772]
[1746317788768,1.08591,1841.3,1841.2,11.79406772]
[1746317789673,2.4195,1841.4,1841.2,12.88001772]
[1746317789971,3.50539,1841.4,1841.2,12.88001772]
[1746317790166,4.29361,1841.5,1841.3,8.12116772]
[1746317790367,4.29359,1841.5,1841.4,7.31346772]
[1746317791076,5.97999,1841.5,1841.4,11.00146772]
[1746317791374,4.29359,1841.5,1841.4,11.00146772]
[1746317791575,7.66919,1841.5,1841.4,3.688]
[1746317792068,11.2912142,1841.5,1841.4,3.688]
[1746317796279,7.66919,1841.5,1841.4,3.688]
[1746317796478,5.7482,1841.5,1841.4,4.77385]
[1746317796781,6.83399,1841.5,1841.4,3.688]
[1746317803088,1.08602,1841.2,1841.0,1.5715]
[1746317803287,0.8496,1841.1,1841.0,1.5715]
[1746317803587,3.61453,1841.1,1841.0,8.88496772]
[1746317803786,2.5285,1841.1,1841.0,8.88496772]
[1746317803980,2.5285,1841.1,1840.9,7.26351306]
[1746317804181,5.97279,1841.0,1840.9,10.95151306]
[1746317805485,3.2078,1841.0,1840.9,10.95151306]
[1746317805679,1.08605,1841.1,1840.9,13.69274306]
[1746317805883,1.93261,1841.2,1841.0,1.6865]
[1746317806292,4.29383,1841.1,1841.0,3.688]
[1746317806591,6.71463,1841.1,1841.0,3.688]
[1746317807184,6.71463,1841.1,1840.9,7.26351306]
[1746317807185,1.08609,1841.0,1840.9,7.26351306]
[1746317807383,2.67459,1841.0,1840.9,7.26351306]
[1746317807893,1.08621,1840.8,1840.7,1.6865]
[1746317808084,1.08621,1840.8,1840.7,12.68796772]
[1746317808583,2.81211,1840.8,1840.7,12.68796772]
[1746317808891,2.81211,1840.8,1840.7,3.688]
[1746317809088,3.67471,1840.8,1840.7,3.688]
[1746317817199,1.08638,1840.5,1840.4,1.6022]
[1746317817693,1.08638,1840.5,1840.4,8.91566772]
[1746317818097,1.08638,1840.5,1840.4,12.60366772]
[1746317818891,2.73568,1840.5,1840.4,12.60366772]
[1746317819098,2.73568,1840.5,1840.4,5.2902]
[1746317819099,5.94348,1840.5,1840.4,5.2902]
[1746317819600,5.94348,1840.5,1840.4,3.688]
[1746317819800,6.78688,1840.5,1840.4,3.688]
[1746317819996,10.7005,1840.5,1840.1,7.26351306]
[1746317820194,1.08662,1840.1,1840.0,3.688]
[1746317820798,2.5097,1840.1,1840.0,3.688]
[1746317822901,2.5097,1840.1,1840.0,5.289]
[1746317823095,2.5097,1840.1,1840.0,6.118]
[1746317824300,2.5097,1840.1,1840.0,7.20468]
[1746317825697,3.2078,1840.2,1840.1,1.08662]
[1746317825903,5.7465,1840.4,1840.1,3.66212]
[1746317826103,5.7465,1840.4,1840.2,1.7302]
[1746317826601,3.2078,1840.4,1840.3,8.39996772]
[1746317826801,3.6220242,1840.6,1840.5,1.08638]
[1746317827003,3.6220242,1840.6,1840.5,8.39984772]
[1746317827301,3.6220242,1840.6,1840.5,4.77438]
[1746317827598,3.2078,1840.7,1840.6,1.08633]
[1746317827798,3.2078,1840.7,1840.6,10.82659772]
[1746317827997,3.6220242,1840.8,1840.7,1.08627]
[1746317828199,3.6220242,1840.8,1840.7,9.96733772]
[1746317828901,3.6220242,1840.8,1840.7,13.17513772]
[1746317829092,3.6220242,1840.8,1840.7,16.86313772]
[1746317831001,1.0859,1841.4,1841.2,1.08596]
[1746317831305,5.90943,1841.5,1841.3,2.77269]
[1746317831501,5.90943,1841.5,1841.4,1.6868]
[1746317832304,5.90943,1841.5,1841.4,5.3748]
[1746317832606,4.8236,1841.5,1841.4,5.3748]
[1746317835507,4.8236,1841.5,1841.4,6.46065]
[1746317837007,0.8311,1841.6,1841.4,5.3748]
[1746317837304,1.0857,1841.7,1841.5,1.08579]
[1746317837515,1.0857,1841.7,1841.5,9.98255772]
[1746317837809,3.2078,1841.6,1841.5,2.66909]
[1746317838109,3.2078,1841.6,1841.5,6.35709]
[1746317839308,3.2078,1841.6,1841.5,5.2713]
[1746317839510,3.2078,1841.6,1841.5,13.67055772]
[1746317841112,3.2078,1841.6,1841.5,12.58476772]
[1746317841409,4.29354,1841.6,1841.5,3.688]
[1746317841610,5.96314,1841.6,1841.5,3.688]
[1746317846113,1.08585,1841.4,1841.3,5.9669]
[1746317846411,4.23294,1841.5,1841.4,7.31346772]
[1746317847113,4.23294,1841.5,1841.4,11.00146772]
[1746317848207,4.23294,1841.5,1841.4,12.66976772]
[1746317848509,3.2078,1841.6,1841.4,12.66976772]
[1746317848816,3.2078,1841.6,1841.5,8.98176772]
[1746317849111,4.29354,1841.6,1841.5,8.98176772]
[1746317849411,4.29354,1841.6,1841.5,1.6683]
[1746317850213,4.29354,1841.6,1841.5,5.3563]
[1746317850414,4.29354,1841.6,1841.5,12.66976772]
[1746317851115,3.2078,1841.6,1841.5,12.66976772]
[1746317851313,4.29354,1841.6,1841.5,12.66976772]
[1746317851515,3.2078,1841.6,1841.5,12.66976772]
[1746317851915,4.29354,1841.6,1841.5,12.66976772]
[1746317853317,5.99954,1841.6,1841.5,12.66976772]
[1746317856618,3.2078,1841.6,1841.5,12.66976772]
[1746317856911,4.29354,1841.6,1841.5,12.66976772]
[1746317857120,1.08572,1841.7,1841.5,13.75555772]
[1746317857417,1.08572,1841.7,1841.6,1.625]
[1746317857618,1.08572,1841.7,1841.6,8.93846772]
[1746317857819,1.08572,1841.7,1841.6,9.74016772]
[1746317858220,2.81142,1841.7,1841.6,9.74016772]
[1746317860821,2.81142,1841.7,1841.6,2.4267]
[1746317861127,2.5304,1841.7,1841.6,2.4267]
[1746317861427,3.2078,1841.8,1841.7,1.08568]
[1746317861725,3.2078,1841.8,1841.7,10.80314772]
[1746317862124,3.2078,1841.8,1841.7,14.49114772]
[1746317862336,3.2078,1842.0,1841.7,18.40546772]
[1746317862534,1.08542,1842.2,1841.9,7.31346772]
[1746317862733,1.08542,1842.2,1842.0,5.9686]
[1746317862935,1.08542,1842.2,1842.1,8.92526772]
[1746317863132,1.08542,1842.2,1842.1,9.71746772]
[1746317871229,4.29322,1842.2,1842.1,8.92526772]
[1746317871433,1.08544,1842.1,1842.0,8.0448]
[1746317871633,2.80174,1842.1,1842.0,15.35826772]
[1746317872137,2.80174,1842.1,1842.0,17.07116772]
[1746317872330,4.29322,1842.2,1842.0,17.07116772]
[1746317872533,1.08542,1842.2,1842.1,1.704]
[1746317872733,1.08542,1842.2,1842.1,9.01746772]
[1746317874741,1.08519,1842.6,1842.3,1.08531]
[1746317875038,1.08519,1842.6,1842.5,7.31346772]
[1746317875238,2.78979,1842.6,1842.5,7.31346772]
[1746317876139,2.78979,1842.6,1842.5,11.00146772]
[1746317876340,6.4118142,1842.6,1842.5,11.00146772]
[1746317878041,6.4118142,1842.6,1842.5,3.688]
[1746317879341,1.08532,1842.3,1842.2,2.5173]